bitfinex/quotes_SOLUSD_20240916
["timestamp","ask_amount","ask_price","bid_price","bid_amount"]
[1726446112767,22.6612,131.64,131.57,0.3786161]
[1726446113065,30.614484,131.63,131.57,0.3786161]
[1726446113242,6.8379,131.62,131.57,0.3786161]
[1726446113443,23.776884,131.63,131.57,0.3786161]
[1726446115066,15.8244,131.64,131.57,0.3786161]
[1726446115575,22.6613,131.64,131.57,0.3786161]
[1726446116377,22.6616,131.64,131.57,0.3786161]
[1726446116545,15.8244,131.64,131.57,0.3786161]
[1726446117547,22.6614,131.64,131.57,0.3786161]
[1726446117874,6.8379,131.62,131.57,0.3786161]
[1726446118072,23.776884,131.63,131.57,0.3786161]
[1726446118073,6.8384,131.61,131.57,0.3786161]
[1726446118573,23.776884,131.61,131.57,0.3786161]
[1726446119153,30.615484,131.61,131.57,0.3786161]
[1726446119683,23.776884,131.61,131.57,0.3786161]
[1726446120587,15.8244,131.64,131.57,0.3786161]
[1726446121076,15.8244,131.64,131.54,20.0]
[1726446121077,15.8244,131.64,131.54,19.8786161]
[1726446121756,22.6614,131.64,131.54,19.8786161]
[1726446122558,15.8244,131.64,131.55,52.86393119]
[1726446123398,15.8244,131.64,131.56,20.0]
[1726446124482,15.8244,131.64,131.57,23.776884]
[1726446124684,15.8244,131.64,131.58,20.0]
[1726446125270,6.8373,131.63,131.54,20.0]
[1726446125479,22.6612,131.64,131.54,20.0]
[1726446126568,6.8375,131.63,131.54,20.0]
[1726446126769,6.8381,131.62,131.51,29.46566329]
[1726446127068,6.2149,131.65,131.51,29.46566329]
[1726446127069,21.9518,131.6,131.51,0.3786161]
[1726446127786,6.84,131.58,131.51,0.3786161]
[1726446127974,6.8394,131.59,131.51,0.3786161]
[1726446128780,23.776884,131.59,131.51,0.3786161]
[1726446129104,6.8411,131.56,131.51,0.3786161]
[1726446129968,16.5172,131.54,131.51,0.3786161]
[1726446130173,6.6041,131.53,131.51,0.3786161]
[1726446135596,16.5172,131.54,131.51,0.3786161]
[1726446136911,6.6475,131.56,131.51,0.3786161]
[1726446137082,15.2894,131.58,131.51,0.3786161]
[1726446138681,6.6475,131.6,131.51,0.3786161]
[1726446138682,6.6475,131.6,131.53,46.74623675]
[1726446138989,6.6475,131.6,131.54,23.776884]
[1726446139182,6.6475,131.6,131.52,43.776884]
[1726446140711,15.2894,131.62,131.52,43.776884]
[1726446141298,22.1276,131.62,131.52,43.776884]
[1726446141496,15.2894,131.62,131.52,43.776884]
[1726446142703,15.2894,131.62,131.55,20.0]
[1726446143503,15.2894,131.62,131.57,20.0]
[1726446144484,15.2894,131.62,131.55,20.0]
[1726446144899,15.2894,131.62,131.57,20.0]
[1726446145294,15.2894,131.62,131.55,20.1168684]
[1726446145897,15.2894,131.62,131.55,0.1168684]
[1726446146091,6.8384,131.61,131.55,0.1168684]
[1726446146294,22.1273,131.62,131.55,0.1168684]
[1726446147615,6.8384,131.61,131.55,0.1168684]
[1726446147911,6.839,131.6,131.55,0.1168684]
[1726446148114,6.8397,131.59,131.55,0.1168684]
[1726446148299,15.978,131.56,131.51,0.2743232]
[1726446150513,22.8189,131.56,131.51,0.2743232]
[1726446150706,6.8415,131.55,131.51,0.2743232]
[1726446151191,22.819,131.56,131.51,0.2743232]
[1726446151597,15.978,131.56,131.51,0.2743232]
[1726446152414,15.978,131.56,131.51,20.2743232]
[1726446153813,6.0073,131.57,131.51,20.2743232]
[1726446157503,22.3952,131.59,131.51,20.2743232]
[1726446157823,15.5557,131.59,131.51,20.2743232]
[1726446158405,15.5557,131.59,131.53,20.0]
[1726446159297,15.5557,131.59,131.51,20.2743232]
[1726446159819,15.5557,131.59,131.52,23.776884]
[1726446160200,6.8399,131.58,131.51,19.7743232]
[1726446161727,6.841,131.56,131.5,20.0]
[1726446161926,6.8406,131.57,131.49,23.776884]
[1726446162291,22.3951,131.59,131.49,23.776884]
[1726446163296,22.3951,131.59,131.51,23.776884]
[1726446163598,6.84,131.58,131.51,23.776884]
[1726446163800,6.8405,131.57,131.49,20.0]
[1726446164194,6.8409,131.56,131.46,30.97509687]
[1726446164508,38.4557,131.59,131.46,30.97509687]
[1726446164509,6.8415,131.55,131.46,30.97509687]
[1726446165105,63.777484,131.58,131.46,24.33519687]
[1726446165410,22.39,131.53,131.44,40.58819687]
[1726446165611,15.5471,131.53,131.44,40.58819687]
[1726446166901,15.5471,131.53,131.45,20.0]
[1726446167721,15.5471,131.53,131.46,23.776884]
[1726446167930,15.5471,131.53,131.47,20.2743232]
[1726446169000,15.5471,131.53,131.47,0.2743232]
[1726446169300,6.8431,131.52,131.47,0.2743232]
[1726446171329,15.5471,131.53,131.47,0.2743232]
[1726446172006,15.5471,131.53,131.47,44.0512072]
[1726446172234,6.4185,131.54,131.47,44.0512072]
[1726446172542,15.5722,131.56,131.47,44.0512072]
[1726446173039,15.5722,131.56,131.48,24.33519687]
[1726446173342,15.5722,131.56,131.49,43.776884]
[1726446175222,307.4,131.59,131.5,24.33519687]
[1726446175416,307.4,131.59,131.51,43.776884]
[1726446175622,314.2394,131.59,131.51,43.776884]
[1726446176446,6.8394,131.59,131.51,43.776884]
[1726446180641,23.776884,131.59,131.5,20.0]
[1726446180843,6.8409,131.57,131.5,20.0]
[1726446181022,6.8409,131.56,131.5,20.0]
[1726446181519,23.776884,131.59,131.49,6.6337]
[1726446181520,6.8405,131.57,131.49,6.6337]
[1726446182743,6.8421,131.54,131.47,0.2743232]
[1726446182918,6.8415,131.55,131.47,0.2743232]
[1726446183555,6.841,131.56,131.47,24.60952007]
[1726446184239,6.8404,131.57,131.48,43.776884]
[1726446184818,6.841,131.56,131.48,43.776884]
[1726446186648,23.776884,131.59,131.48,43.776884]
[1726446186950,96.656884,131.59,131.47,20.2743232]
[1726446187133,6.8415,131.55,131.47,20.2743232]
[1726446187642,6.8421,131.54,131.47,20.2743232]
[1726446188541,23.776884,131.56,131.47,20.2743232]
[1726446189452,6.8429,131.53,131.47,0.2743232]
[1726446191548,21.5332,131.6,131.48,23.776884]
[1726446191742,6.8409,131.57,131.48,23.776884]
[1726446192060,23.776884,131.59,131.48,23.776884]
[1726446192061,6.841,131.56,131.48,23.776884]
[1726446193227,6.8405,131.57,131.48,23.776884]
[1726446193534,6.8405,131.57,131.47,44.60952007]
[1726446193535,6.8399,131.58,131.5,23.776884]
[1726446196762,6.8399,131.58,131.51,6.5999]
[1726446197857,6.8399,131.58,131.52,15.4703]
[1726446198063,6.8395,131.59,131.52,15.4703]
[1726446202992,0.2743232,131.62,131.53,44.33519687]
[1726446203179,7.1123232,131.62,131.55,24.33519687]
[1726446203378,6.8384,131.61,131.53,44.33519687]
[1726446203892,7.1122232,131.62,131.53,44.33519687]
[1726446204756,6.8385,131.61,131.53,44.33519687]
[1726446205886,6.8385,131.61,131.54,23.776884]
[1726446205887,7.1021903,131.61,131.54,23.776884]
[1726446207886,0.2636903,131.61,131.55,44.33519687]
[1726446208086,0.2636903,131.61,131.56,6.4864]
[1726446209362,0.2636903,131.61,131.57,16.6117]
[1726446210684,0.2636903,131.61,131.58,43.776884]
[1726446211094,0.2636903,131.61,131.58,20.0]
[1726446213091,0.2636903,131.61,131.59,23.776884]
[1726446213782,0.2636903,131.61,131.6,20.0]
[1726446215577,0.2636903,131.61,131.6,45.29417189]
[1726446215777,0.2636903,131.61,131.6,43.776884]
[1726446217377,0.2636903,131.61,131.6,49.839084]
[1726446217993,0.2636903,131.61,131.6,65.38460792]
[1726446218179,0.2636903,131.61,131.6,65.677884]
[1726446218386,0.2636903,131.61,131.6,81.22340792]
[1726446219480,0.2636903,131.61,131.6,81.22843764]
[1726446230577,0.2636903,131.61,131.6,65.677884]
[1726446230782,0.2636903,131.61,131.6,81.22843764]
[1726446232909,0.2558303,131.65,131.62,20.0]
[1726446233094,0.2558303,131.65,131.63,17.06701263]
[1726446233282,0.2558303,131.65,131.63,15.55055364]
[1726446233487,0.2558303,131.65,131.62,15.55055364]
[1726446233998,0.2558303,131.65,131.62,20.0]
[1726446234601,0.2558303,131.65,131.61,20.0]
[1726446235995,0.2558303,131.65,131.58,20.0]
[1726446236202,0.2558303,131.65,131.58,35.55055364]
[1726446236522,15.8625303,131.65,131.55,6.8358]
[1726446236815,6.8368,131.64,131.56,15.55055364]
[1726446236985,15.8625303,131.65,131.54,23.0541]
[1726446237185,15.8625303,131.65,131.6,15.55055364]
[1726446237421,15.8625303,131.65,131.61,15.55055364]
[1726446237591,0.2558303,131.65,131.63,15.55055364]
[1726446238115,0.2558303,131.65,131.6,59.32743764]
[1726446238626,15.6067,131.63,131.54,23.0541]
[1726446238788,22.444,131.63,131.55,15.55055364]
[1726446238987,22.4442,131.63,131.56,15.55055364]
[1726446239187,22.4442,131.63,131.55,15.55055364]
[1726446239403,6.8385,131.61,131.51,23.3099303]
[1726446239587,15.6067,131.63,131.52,15.55055364]
[1726446240004,23.776884,131.62,131.52,15.55055364]
[1726446240513,22.4444,131.63,131.54,15.55055364]
[1726446241087,22.4444,131.63,131.55,15.55055364]
[1726446243821,15.6067,131.63,131.55,15.55055364]
[1726446243991,15.6067,131.63,131.57,35.55055364]
[1726446244892,15.6067,131.63,131.58,23.776884]
[1726446245211,15.6067,131.63,131.58,39.32743764]
[1726446245626,15.6067,131.63,131.59,20.0]
[1726446245917,0.2558303,131.65,131.6,39.32743764]
[1726446246132,0.2558303,131.65,131.6,23.776884]
[1726446246692,0.2558303,131.65,131.6,39.32743764]
[1726446246894,0.2558303,131.65,131.62,15.55055364]
[1726446247724,0.2558303,131.65,131.63,23.776884]
[1726446248106,0.2558303,131.65,131.63,39.32743764]
[1726446248929,0.2558303,131.65,131.64,15.55055364]
[1726446249923,0.2558303,131.65,131.63,23.776884]
[1726446250908,0.2558303,131.65,131.64,20.0]
[1726446251112,0.2558303,131.65,131.64,43.776884]
[1726446251407,0.2558303,131.65,131.64,68.0602667]
[1726446252428,15.5076303,131.69,131.65,23.776884]
[1726446252728,15.5076303,131.69,131.68,20.0]
[1726446252936,15.5076303,131.69,131.68,43.776884]
[1726446265229,0.2558303,131.69,131.68,43.776884]
[1726446268436,0.2558303,131.73,131.7,20.0]
[1726446268657,0.2558303,131.73,131.72,68.0602667]
[1726446269551,0.2558303,131.73,131.72,43.776884]
[1726446269860,0.2558303,131.73,131.71,20.0]
[1726446270066,0.2558303,131.73,131.71,15.52453314]
[1726446270375,0.2558303,131.73,131.72,20.0]
[1726446271648,0.2558303,131.73,131.72,15.52453314]
[1726446271851,0.2558303,131.73,131.72,20.0]
[1726446272245,0.2558303,131.73,131.64,15.50763]
[1726446272471,0.2558303,131.73,131.69,15.52453314]
[1726446272755,0.2558303,131.73,131.68,15.52453314]
[1726446273981,0.2558303,131.73,131.69,15.52453314]
[1726446276964,0.2558303,131.73,131.68,20.0]
[1726446277973,0.2558303,131.73,131.67,20.0]
[1726446278295,7.0880303,131.73,131.67,20.0]
[1726446278664,7.0880303,131.73,131.67,15.52453314]
[1726446278992,0.2558303,131.73,131.68,20.0]
[1726446280490,0.2558303,131.73,131.69,15.52453314]
[1726446281186,0.2558303,131.73,131.68,15.52453314]
[1726446281582,0.2558303,131.73,131.65,23.776884]
[1726446281884,0.2558303,131.73,131.68,20.0]
[1726446282090,7.0881303,131.73,131.68,20.0]
[1726446282291,0.2558303,131.73,131.64,15.52453314]
[1726446283164,0.2558303,131.73,131.59,15.7803633]
[1726446283165,24.0327143,131.73,131.59,15.7803633]
[1726446283362,6.8342,131.69,131.62,15.52453314]
[1726446283591,6.8342,131.69,131.59,0.2558303]
[1726446283592,41.1142143,131.73,131.61,15.52453314]
[1726446283792,6.8347,131.68,131.61,15.52453314]
[1726446284092,6.8347,131.68,131.6,24.29308552]
[1726446284590,6.8343,131.69,131.6,24.29308552]
[1726446284799,6.8336,131.71,131.62,20.0]
[1726446284972,6.8336,131.71,131.63,23.776884]
[1726446287091,6.8338,131.7,131.63,23.776884]
[1726446288378,6.8332,131.71,131.63,23.776884]
[1726446288974,6.8332,131.71,131.64,20.0]
[1726446290871,6.8332,131.71,131.63,23.776884]
[1726446291398,6.8332,131.71,131.64,20.0]
[1726446291774,6.8327,131.72,131.64,20.0]
[1726446297895,0.2558303,131.73,131.65,23.776884]
[1726446298080,0.2558303,131.73,131.67,23.776884]
[1726446300006,0.2558303,131.73,131.68,20.0]
[1726446300679,0.2558303,131.73,131.69,23.776884]
[1726446302501,0.2558303,131.73,131.7,20.0]
[1726446302697,0.2558303,131.73,131.71,23.776884]
[1726446303281,0.2558303,131.73,131.68,20.0]
[1726446303509,0.2558303,131.73,131.66,20.0]
[1726446303901,0.2558303,131.73,131.68,20.0]
[1726446304601,0.2558303,131.73,131.7,20.0]
[1726446304800,0.2558303,131.73,131.72,20.0]
[1726446305305,0.2558303,131.73,131.72,43.776884]
[1726446305888,0.2558303,131.73,131.71,23.776884]
[1726446306089,0.2558303,131.73,131.72,20.0]
[1726446307603,0.2558303,131.73,131.71,23.776884]
[1726446307921,0.2558303,131.73,131.67,15.52628005]
[1726446308126,0.2558303,131.73,131.68,15.52628005]
[1726446308303,0.2558303,131.73,131.67,15.52628005]
[1726446309707,0.2558303,131.73,131.68,23.776884]
[1726446309909,0.2558303,131.73,131.68,43.776884]
[1726446310105,0.2558303,131.73,131.59,18.20480298]
[1726446310302,0.2558303,131.73,131.63,15.52628005]
[1726446311225,6.8332,131.71,131.63,15.52628005]
[1726446311526,6.8327,131.72,131.64,20.0]
[1726446311914,6.8327,131.72,131.61,24.28692806]
[1726446312122,0.2558303,131.73,131.62,20.0]
[1726446312420,6.8327,131.72,131.62,20.0]
[1726446312927,0.2558303,131.73,131.63,24.28692806]
[1726446313120,0.2558303,131.73,131.65,24.28692806]
[1726446313431,0.2558303,131.73,131.68,23.776884]
[1726446316424,0.2558303,131.73,131.67,20.0]
[1726446316627,0.2558303,131.73,131.67,23.776884]
[1726446316803,0.2558303,131.73,131.68,20.0]
[1726446320318,0.2558303,131.73,131.66,20.0]
[1726446320519,0.2558303,131.73,131.67,23.776884]
[1726446320824,0.2558303,131.73,131.68,20.0]
[1726446321011,0.2558303,131.73,131.69,23.776884]
[1726446321412,0.2558303,131.73,131.7,20.0]
[1726446322514,0.2558303,131.73,131.71,23.776884]
[1726446324239,0.2558303,131.73,131.68,20.0]
[1726446324609,0.2558303,131.73,131.65,24.28692806]
[1726446325835,15.1075,131.72,131.67,20.0]
[1726446326008,15.1075,131.72,131.69,20.0]
[1726446326519,21.7104,131.72,131.68,23.776884]
[1726446326834,21.7104,131.72,131.69,20.0]
[1726446327941,21.7104,131.72,131.7,23.776884]
[1726446328451,21.7104,131.72,131.71,43.776884]
[1726446328617,0.2558303,131.73,131.72,23.776884]
[1726446328822,0.2558303,131.73,131.72,43.776884]
[1726446329036,0.2558303,131.73,131.67,24.28692806]
[1726446329224,0.2558303,131.73,131.69,20.0]
[1726446329938,0.2558303,131.73,131.71,20.0]
[1726446330412,0.2558303,131.73,131.69,20.0]
[1726446330809,0.2558303,131.73,131.71,20.0]
[1726446331635,0.2558303,131.73,131.69,20.0]
[1726446331811,0.2558303,131.73,131.71,20.0]
[1726446332533,0.2558303,131.73,131.69,20.0]
[1726446332837,0.2558303,131.73,131.72,43.776884]
[1726446333028,0.2558303,131.73,131.72,45.29409752]
[1726446333443,0.2558303,131.73,131.72,43.776884]
[1726446333948,0.2558303,131.73,131.72,45.29464341]
[1726446334536,0.2558303,131.73,131.72,43.776884]
[1726446335415,0.2558303,131.77,131.73,20.0]
[1726446335616,0.2558303,131.77,131.76,23.776884]
[1726446335835,0.2558303,131.77,131.76,43.776884]
[1726446336623,0.2558303,131.77,131.76,20.0]
[1726446336824,0.2558303,131.77,131.73,20.0]
[1726446337041,16.0838,131.76,131.64,22.97821696]
[1726446337240,16.0838,131.76,131.67,24.28692806]
[1726446337950,16.0838,131.76,131.69,24.28692806]
[1726446338127,16.0838,131.76,131.71,24.28692806]
[1726446338329,16.0838,131.76,131.72,20.0]
[1726446338546,16.0838,131.76,131.73,23.776884]
[1726446340351,16.0838,131.76,131.74,20.0]
[1726446340655,0.2558303,131.77,131.76,20.0]
[1726446340957,0.2558303,131.77,131.76,43.776884]
[1726446342629,0.2558303,131.77,131.76,45.29383391]
[1726446342834,0.2558303,131.77,131.76,43.776884]
[1726446349055,0.2558303,131.77,131.76,20.0]
[1726446351563,0.2558303,131.77,131.72,20.0]
[1726446351752,15.1084,131.76,131.69,24.28692806]
[1726446352071,15.1084,131.76,131.64,16.0838]
[1726446352239,6.5926,131.75,131.64,40.37072806]
[1726446352435,15.1084,131.74,131.64,24.28692806]
[1726446354040,15.1084,131.74,131.65,20.0]
[1726446354753,15.1084,131.74,131.67,20.0]
[1726446355767,6.2896,131.73,131.67,20.0]
[1726446361165,6.2896,131.73,131.68,23.776884]
[1726446361373,6.2896,131.73,131.69,20.0]
[1726446361867,15.1084,131.74,131.71,20.0]
[1726446362069,0.2558303,131.77,131.71,20.0]
[1726446362070,16.6847303,131.77,131.73,20.0]
[1726446362282,16.6847303,131.77,131.74,1.51628735]
[1726446362457,0.2558303,131.77,131.76,68.06381206]
[1726446362782,0.2558303,131.77,131.76,43.776884]
[1726446363979,16.6847303,131.81,131.76,43.776884]
[1726446363980,0.2558303,131.81,131.79,23.776884]
[1726446364149,0.2558303,131.81,131.8,43.776884]
[1726446364478,0.2558303,131.81,131.77,20.0]
[1726446364972,0.2558303,131.81,131.75,43.776884]
[1726446365469,0.2558303,131.81,131.75,20.0]
[1726446365768,0.2558303,131.81,131.71,24.28692806]
[1726446365769,16.4289,131.8,131.71,24.28692806]
[1726446365953,16.4289,131.8,131.69,40.97165806]
[1726446366155,16.4289,131.8,131.69,24.28692806]
[1726446366874,16.4289,131.8,131.67,40.31416427]
[1726446366875,16.4289,131.8,131.71,24.28692806]
[1726446367279,16.4289,131.8,131.72,43.776884]
[1726446369263,16.4289,131.8,131.67,63.08495836]
[1726446369264,16.4289,131.8,131.74,43.776884]
[1726446371983,16.4289,131.8,131.77,23.776884]
[1726446372578,16.4289,131.8,131.76,23.776884]
[1726446372775,16.4289,131.8,131.78,23.776884]
[1726446372985,0.2558303,131.81,131.78,23.776884]
[1726446373880,0.2558303,131.81,131.79,20.0]
[1726446375573,0.2558303,131.81,131.8,23.776884]
[1726446375772,0.2558303,131.81,131.8,43.776884]
[1726446378065,0.2558303,131.81,131.8,20.0]
[1726446378268,0.2558303,131.81,131.79,24.28692806]
[1726446378269,0.2558303,131.81,131.79,20.0]
[1726446381869,0.2558303,131.81,131.8,43.776884]
[1726446382166,0.2558303,131.81,131.8,45.29355832]
[1726446382374,0.2558303,131.81,131.8,43.776884]
[1726446382775,0.2558303,131.81,131.8,45.29365033]
[1726446383792,0.2558303,131.81,131.8,43.776884]
[1726446386602,0.2558303,131.81,131.8,20.0]
[1726446388303,0.2558303,131.81,131.8,43.776884]
[1726446391279,0.2558303,131.85,131.81,43.776884]
[1726446391594,0.2558303,131.85,131.83,20.0]
[1726446395100,0.2558303,131.85,131.82,20.0]
[1726446398421,0.2558303,131.85,131.84,20.0]
[1726446398916,0.2558303,131.85,131.82,44.28692806]
[1726446399203,0.2558303,131.85,131.84,20.0]
[1726446399508,0.2558303,131.85,131.84,43.776884]
[1726446400487,0.2558303,131.85,131.84,68.06381206]
[1726446406205,15.4871303,131.89,131.87,23.776884]
[1726446406206,0.2558303,131.89,131.87,23.776884]
[1726446406412,0.2558303,131.89,131.88,44.8959663]
[1726446407909,0.2558303,131.93,131.88,92.35074012]
[1726446408108,0.2558303,131.93,131.92,24.28692806]
[1726446408283,0.2558303,131.93,131.92,68.06381206]
[1726446410296,0.2558303,131.93,131.92,43.776884]
[1726446416223,0.2558303,131.93,131.92,68.06381206]
[1726446420198,0.2558303,131.93,131.91,20.0]
[1726446420398,0.2558303,131.93,131.92,23.776884]
[1726446420615,0.2558303,131.93,131.92,43.776884]
[1726446421698,0.2558303,131.93,131.92,20.0]
[1726446421899,0.2558303,131.93,131.91,20.0]
[1726446423816,0.2558303,131.93,131.89,20.0]
[1726446424812,0.2558303,131.93,131.88,24.28692806]
[1726446425013,23.0820303,131.93,131.86,24.28692806]
[1726446425322,23.0820303,131.93,131.87,23.776884]
[1726446425500,23.0820303,131.93,131.87,53.776884]
[1726446425909,29.9038303,131.93,131.84,24.28692806]
[1726446426126,6.8232,131.91,131.82,27.29706369]
[1726446426296,6.8232,131.91,131.82,24.28692806]
[1726446426490,6.8234,131.9,131.83,30.0]
[1726446426696,6.6343,131.89,131.83,30.0]
[1726446427416,16.0227,131.88,131.8,24.28692806]
[1726446427620,16.0227,131.88,131.82,24.28692806]
[1726446428604,16.0227,131.88,131.84,24.28692806]
[1726446428922,16.0227,131.88,131.84,20.0]
[1726446429218,16.0227,131.88,131.85,23.776884]
[1726446431425,6.6343,131.89,131.85,23.776884]
[1726446438810,6.6343,131.89,131.86,20.0]
[1726446439427,15.3538,131.91,131.86,20.0]
[1726446445052,6.0319,131.9,131.79,0.2558303]
[1726446445236,15.628,131.89,131.8,30.0]
[1726446445440,15.628,131.89,131.79,0.2558303]
[1726446445648,21.6599,131.85,131.79,0.2558303]
[1726446448735,21.6599,131.85,131.79,20.2558303]
[1726446448932,21.6599,131.85,131.8,23.776884]
[1726446452251,21.6599,131.85,131.79,0.2558303]
[1726446452631,6.8265,131.84,131.79,0.2558303]
[1726446453535,28.4858,131.85,131.79,0.2558303]
[1726446454638,21.6599,131.85,131.79,0.2558303]
[1726446461867,6.8265,131.84,131.79,0.2558303]
[1726446462577,15.8665,131.84,131.79,0.2558303]
[1726446463973,22.6933,131.84,131.79,0.2558303]
[1726446464765,6.827,131.83,131.79,0.2558303]
[1726446466891,22.6931,131.84,131.79,0.2558303]
[1726446467986,6.8271,131.83,131.79,0.2558303]
[1726446468163,15.8665,131.84,131.79,0.2558303]
[1726446469265,6.827,131.83,131.79,0.2558303]
[1726446470161,22.693,131.84,131.79,0.2558303]
[1726446470370,15.8665,131.84,131.79,20.2558303]
[1726446471284,15.8665,131.84,131.79,15.76946921]
[1726446471481,6.0319,131.85,131.79,15.76946921]
[1726446471482,6.0319,131.85,131.8,15.51363891]
[1726446471989,6.0319,131.85,131.79,0.2558303]
[1726446472286,15.8204,131.87,131.79,44.0327143]
[1726446474071,6.8268,131.84,131.79,0.2558303]
[1726446474371,6.8266,131.84,131.79,0.2558303]
[1726446474573,6.8275,131.82,131.79,0.2558303]
[1726446475103,6.828,131.81,131.79,0.2558303]
[1726446475594,22.8714,131.82,131.79,0.2558303]
[1726446479002,16.0439,131.82,131.79,0.2558303]
[1726446481900,6.826,131.85,131.79,0.2558303]
[1726446483820,39.015884,131.86,131.79,0.2558303]
[1726446483821,15.239,131.86,131.79,0.2558303]
[1726446483978,6.4067,131.87,131.79,24.47975997]
[1726446484312,21.9501,131.88,131.79,0.2558303]
[1726446484603,6.8285,131.8,131.79,0.2558303]
[1726446484779,6.8285,131.8,131.75,0.2558303]
[1726446484780,6.8296,131.78,131.75,0.2558303]
[1726446484975,21.9501,131.8,131.75,0.2558303]
[1726446485581,28.7786,131.8,131.75,0.2558303]
[1726446488104,21.9501,131.8,131.75,0.2558303]
[1726446488818,6.8292,131.79,131.75,0.2558303]
[1726446489513,15.8528,131.8,131.75,0.2558303]
[1726446490400,22.6815,131.8,131.75,0.2558303]
[1726446491332,6.8296,131.78,131.75,0.2558303]
[1726446491997,6.8306,131.76,131.75,0.2558303]
[1726446492792,6.5528,131.78,131.75,0.2558303]
[1726446492994,15.8528,131.8,131.75,0.2558303]
[1726446493607,13.3807,131.82,131.75,0.2558303]
[1726446494222,15.7015,131.83,131.75,0.2558303]
[1726446494423,22.5284,131.83,131.75,0.2558303]
[1726446495229,15.7015,131.83,131.75,0.2558303]
[1726446496026,15.7015,131.87,131.78,20.0]
[1726446496323,15.7015,131.87,131.8,20.0]
[1726446499305,22.5264,131.87,131.8,20.0]
[1726446499610,15.7015,131.87,131.8,20.0]
[1726446499913,23.776884,131.86,131.79,16.4236]
[1726446500120,23.776884,131.86,131.77,20.0]
[1726446500327,6.8265,131.84,131.77,20.0]
[1726446501006,6.827,131.83,131.77,20.0]
[1726446501321,23.776884,131.84,131.75,15.4953303]
[1726446501524,6.8284,131.81,131.75,0.2558303]
[1726446501922,23.776884,131.8,131.75,0.2558303]
[1726446502316,23.776884,131.81,131.75,0.2558303]
[1726446503028,6.8284,131.81,131.75,0.2558303]
[1726446503832,6.8285,131.8,131.75,0.2558303]
[1726446505627,6.828,131.81,131.75,0.2558303]
[1726446505928,29.8996,131.85,131.75,20.2558303]
[1726446506119,23.0737,131.85,131.76,23.776884]
[1726446506433,23.4451,131.85,131.77,35.5504]
[1726446506933,16.6192,131.85,131.77,41.8342]
[1726446507919,16.0101,131.88,131.79,20.0]
[1726446508101,6.8249,131.87,131.79,20.0]
[1726446512707,6.8258,131.86,131.78,20.0]
[1726446513134,6.825,131.87,131.78,44.22392967]
[1726446513814,6.8254,131.86,131.78,44.22392967]
[1726446514012,6.8254,131.86,131.78,20.0]
[1726446514332,6.826,131.85,131.78,20.0]
[1726446514626,6.8254,131.86,131.78,20.0]
[1726446514831,23.776884,131.87,131.78,20.0]
[1726446514832,30.601784,131.87,131.78,20.0]
[1726446515017,6.8249,131.87,131.78,44.22392967]
[1726446516505,6.8249,131.87,131.79,23.776884]
[1726446516821,6.8245,131.88,131.8,20.0]
[1726446517028,6.8249,131.87,131.8,20.0]
[1726446519945,23.776884,131.86,131.77,21.8342]
[1726446520234,6.8265,131.84,131.77,21.8342]
[1726446520546,6.8284,131.81,131.77,21.8342]
[1726446520725,6.8286,131.8,131.77,15.5504]
[1726446520914,23.776884,131.84,131.75,0.2558303]
[1726446520915,6.8292,131.79,131.75,0.2558303]
[1726446521120,17.0681,131.83,131.75,0.2558303]
[1726446521428,15.7979,131.85,131.75,0.2558303]
[1726446521429,6.8306,131.76,131.75,0.2558303]
[1726446521731,30.607484,131.76,131.75,0.2558303]
[1726446521937,23.776884,131.75,131.71,0.2558303]
[1726446522447,6.8322,131.73,131.71,0.2558303]
[1726446523638,6.8316,131.74,131.71,0.2558303]
[1726446524515,6.8311,131.76,131.71,0.2558303]
[1726446524940,6.8302,131.77,131.71,0.2558303]
[1726446527043,307.4,131.81,131.72,21.349]
[1726446527347,20.0,131.82,131.72,21.349]
[1726446528339,6.8279,131.82,131.73,20.0]
[1726446528640,6.8281,131.81,131.73,20.0]
[1726446529922,6.8284,131.81,131.73,20.0]